lending/lending_fUSD_20240604
["ID","MTS","AMOUNT","RATE_DAILY","PERIOD"]
[328568657,1717542649418,-500.0,0.00029589,6]
[328568658,1717542649428,-500.0,0.00029589,6]
[328568659,1717542649436,-500.0,0.00029589,6]
[328568660,1717542649446,-500.0,0.00029589,6]
[328568661,1717542649455,-368.49,0.00029589,6]
[328568662,1717542649465,-500.0,0.00029589,6]
[328568663,1717542649474,-500.0,0.00029589,6]
[328568664,1717542649484,-500.0,0.00029589,6]
[328568665,1717542649497,-500.0,0.00029589,6]
[328568666,1717542649507,-500.0,0.00029589,6]
[328568667,1717542649515,-500.0,0.00029589,6]
[328568668,1717542649524,-500.0,0.00029589,6]
[328568669,1717542649533,-500.0,0.00029589,6]
[328568670,1717542649543,-500.0,0.00029589,6]
[328568671,1717542649552,-196.81973792,0.00029589,6]
[328568672,1717542649561,-553.82101091,0.00029589,6]
[328568673,1717542649570,-500.0,0.00029589,6]
[328568674,1717542649580,-500.0,0.00029589,6]
[328568675,1717542649589,-500.0,0.00029589,6]
[328568676,1717542649598,-500.0,0.00029589,6]
[328568677,1717542649607,-500.0,0.00029589,6]
[328568678,1717542649616,-500.0,0.00029589,6]
[328568679,1717542649626,-500.0,0.00029589,6]
[328568680,1717542649635,-500.0,0.00029589,6]
[328568681,1717542649644,-500.0,0.00029589,6]
[328568682,1717542649654,-500.0,0.00029589,6]
[328568683,1717542649663,-476.47,0.00029589,6]
[328568684,1717542649672,-500.0,0.00029589,6]
[328568685,1717542649682,-500.0,0.00029589,6]
[328568686,1717542649691,-500.0,0.00029589,6]
[328568687,1717542649701,-500.0,0.00029589,6]
[328568688,1717542649710,-500.0,0.00029589,6]
[328568689,1717542649720,-500.0,0.00029589,6]
[328568690,1717542649729,-1000.0,0.00029589,6]
[328568691,1717542649738,-500.0,0.00029589,6]
[328568692,1717542649747,-500.0,0.00029589,6]
[328568693,1717542649756,-500.0,0.00029589,6]
[328568694,1717542649765,-326.53,0.00029589,6]
[328568695,1717542649774,-500.0,0.00029589,6]
[328568696,1717542649785,-500.0,0.00029589,6]
[328568697,1717542649794,-500.0,0.00029589,6]
[328568698,1717542649803,-500.0,0.00029589,6]
[328568699,1717542649812,-500.0,0.00029589,6]
[328568700,1717542649821,-259.61,0.00029589,6]
[328568701,1717542649830,-500.0,0.00029589,6]
[328568702,1717542649839,-500.0,0.00029589,6]
[328568703,1717542649847,-633.75872576,0.00029589,6]
[328568704,1717542649856,-500.0,0.00029589,6]
[328568705,1717542649865,-500.0,0.00029589,6]
[328568706,1717542649874,-500.0,0.00029589,6]
[328568707,1717542649883,-500.0,0.00029589,6]
[328568708,1717542649892,-500.0,0.00029589,6]
[328568709,1717542649901,-500.0,0.00029589,6]
[328568710,1717542649911,-258.03444462,0.00029589,6]
[328568711,1717542649920,-500.0,0.00029589,6]
[328568712,1717542649928,-500.0,0.00029589,6]
[328568713,1717542649938,-500.0,0.00029589,6]
[328568714,1717542649947,-500.0,0.00029589,6]
[328568715,1717542649956,-500.0,0.00029589,6]
[328568716,1717542649965,-500.0,0.00029589,6]
[328568717,1717542649975,-500.0,0.00029589,6]
[328568718,1717542649984,-500.0,0.00029589,6]
[328568719,1717542649993,-500.0,0.00029589,6]
[328568720,1717542650003,-500.0,0.00029589,6]
[328568721,1717542650012,-199.07275063,0.00029589,6]
[328568722,1717542650047,-300.92724937,0.00029589,6]
[328568723,1717542650056,-500.0,0.00029589,6]
[328568724,1717542650066,-500.0,0.00029589,6]
[328568725,1717542650075,-500.0,0.00029589,6]
[328568726,1717542650084,-442.04,0.00029589,6]
[328568727,1717542650094,-500.0,0.00029589,6]
[328568728,1717542650104,-500.0,0.00029589,6]
[328568729,1717542650113,-500.0,0.00029589,6]
[328568730,1717542650123,-500.0,0.00029589,6]
[328568731,1717542650132,-411.09472439,0.00029589,6]
[328568732,1717542650145,-88.90527561,0.00029589,6]
[328568733,1717542650154,-500.0,0.00029589,6]
[328568734,1717542650163,-500.0,0.00029589,6]
[328568735,1717542650172,-500.0,0.00029589,6]
[328568736,1717542650182,-500.0,0.00029589,6]
[328568737,1717542650191,-500.0,0.00029589,6]
[328568738,1717542650202,-500.0,0.00029589,6]
[328568739,1717542650211,-89.56090436,0.00029589,6]
[328568740,1717542650237,-163.21,0.00024384,2]
[328568741,1717542650247,-143.646,0.00029589,6]
[328568742,1717542650261,-266.79309564,0.00029589,6]
[328568743,1717542650271,-500.0,0.00029589,6]
[328568744,1717542650280,-500.0,0.00029589,6]
[328568745,1717542650289,-170.22658254,0.00029589,6]
[328568746,1717542650462,-226.54621656,0.000201,2]
[328568747,1717542650472,-195.85445237,0.00023,2]
[328568748,1717542650481,-142.73423307,0.00029587,2]
[328568749,1717542650499,-268.65041489,0.00029587,2]
[328568750,1717542650512,-170.14486991,0.00029588,2]
[328568751,1717542650521,-325.64160337,0.00029588,2]
[328568752,1717542650531,-1010.45200313,0.00029588,2]
[328568753,1717542650540,-329.77341746,0.00029589,6]
[328568754,1717542650550,-500.0,0.00029589,6]
[328568755,1717542650559,-510.61,0.00029589,6]
[328568756,1717542650569,-500.0,0.00029589,6]
[328568757,1717542650580,-500.0,0.00029589,6]
[328568758,1717542650590,-500.0,0.00029589,6]
[328568759,1717542650599,-500.0,0.00029589,6]
[328568760,1717542650608,-500.0,0.00029589,6]
[328568761,1717542650617,-500.0,0.00029589,6]
[328568762,1717542650627,-259.18,0.00029589,6]
[328568763,1717542650636,-500.0,0.00029589,6]
[328568764,1717542650646,-500.0,0.00029589,6]
[328568765,1717542650655,-500.0,0.00029589,6]
[328568766,1717542650664,-500.0,0.00029589,6]
[328568767,1717542650674,-273.01341215,0.00029589,6]
[328568768,1717542650688,-226.98658785,0.00029589,6]
[328568769,1717542650697,-201.2908995,0.00029589,6]
[328568770,1717542650709,-298.7091005,0.00029589,6]
[328568771,1717542650719,-500.0,0.00029589,6]
[328568772,1717542650730,-500.0,0.00029589,6]
[328568773,1717542650739,-500.0,0.00029589,6]
[328568774,1717542650906,-500.0,0.00029589,6]
[328568775,1717542650916,-500.0,0.00029589,6]
[328568776,1717542650926,-500.0,0.00029589,6]
[328568777,1717542650936,-500.0,0.00029589,6]
[328568778,1717542650946,-500.0,0.00029589,6]
[328568779,1717542650956,-500.0,0.00029589,6]
[328568780,1717542650966,-500.0,0.00029589,6]
[328568781,1717542650975,-500.0,0.00029589,6]
[328568782,1717542650984,-500.0,0.00029589,6]
[328568783,1717542650993,-469.29126236,0.00029589,6]
[328568784,1717542651007,-30.70873764,0.00029589,6]
[328568785,1717542651017,-231.91854895,0.00029589,6]
[328568786,1717542651026,-234.11753683,0.00029589,6]
[328568787,1717542651036,-500.0,0.00029589,6]
[328568788,1717542651045,-500.0,0.00029589,6]
[328568789,1717542651054,-500.0,0.00029589,6]
[328568790,1717542651064,-500.0,0.00029589,6]
[328568791,1717542651073,-197.96,0.00029589,6]
[328568792,1717542651083,-500.0,0.00029589,6]
[328568793,1717542651092,-500.0,0.00029589,6]
[328568794,1717542651102,-500.0,0.00029589,6]
[328568795,1717542651112,-500.0,0.00029589,6]
[328568796,1717542651121,-430.30550058,0.00029589,6]
[328568797,1717542651134,-69.69449942,0.00029589,6]
[328568798,1717542651143,-500.0,0.00029589,6]
[328568799,1717542651153,-555.04,0.00029589,6]
[328568800,1717542651163,-500.0,0.00029589,6]
[328568801,1717542651172,-500.0,0.00029589,6]
[328568802,1717542651181,-500.0,0.00029589,6]
[328568803,1717542651190,-500.0,0.00029589,6]
[328568804,1717542651200,-500.0,0.00029589,6]
[328568805,1717542651209,-500.0,0.00029589,6]
[328568806,1717542651218,-500.0,0.00029589,6]
[328568807,1717542651227,-500.0,0.00029589,6]
[328568808,1717542651237,-500.0,0.00029589,6]
[328568809,1717542651246,-500.0,0.00029589,6]
[328568810,1717542651256,-500.0,0.00029589,6]
[328568811,1717542651264,-165.44491499,0.00029589,6]
[328568839,1717543831557,-935.25814264,0.00016332,2]
[328568840,1717543831568,-325.19119803,0.00016332,2]
[328568841,1717543831579,-481.53748878,0.00016333,2]
[328568842,1717543831589,-333.87761899,0.00016334,2]
[328568843,1717543831599,-411.38464796,0.00019,2]
[328568844,1717543831609,-181.77,0.00019726,2]
[328568845,1717543831618,-499.99,0.0002,2]
[328568846,1717543831628,-1010.45200313,0.0002,2]
[328568847,1717543831638,-226.54621656,0.000201,2]
[328568848,1717543831647,-155.0,0.00021916,2]
[328568849,1717543831656,-179.78,0.00021918,2]
[328568850,1717543831666,-155.0,0.00022,2]
[328568851,1717543831677,-548.88488712,0.00023671,2]
[328568852,1717543831687,-212.41,0.00024384,2]
[328568853,1717543831696,-1519.49613399,0.00024999,2]
[328568854,1717543831708,-7502.173919,0.00024999,2]
[328568855,1717543831718,-442.83097196,0.00025,2]
[328568856,1717543831729,-456.76620795,0.00025,2]
[328568857,1717543831741,-29.70545021,0.00025,2]
[328568858,1717543831750,-820.29454979,0.00025,2]
[328568859,1717543831761,-429.70545021,0.00025,2]
[328568860,1717543831771,-135.01504532,0.00025,2]
[328568861,1717543831783,-190.62655805,0.00025,2]
[328568862,1717543831792,-507.09,0.0002519,2]
[328568863,1717543831802,-2054.22929284,0.000266,2]
[328568864,1717543831812,-250.0,0.00026817,2]
[328568865,1717543831821,-1000.0,0.0002682,2]
[328568866,1717543831831,-250.0,0.00026863,2]
[328568867,1717543831841,-13209.66061716,0.00026884,2]
[328568868,1717543831853,-6550.45938284,0.00026884,2]
[328568869,1717543831863,-500.0,0.00026948,2]
[328568870,1717543831873,-1300.0,0.00027,2]
[328568871,1717543831887,-200.0,0.00027027,2]
[328568872,1717543831896,-295.27,0.00027027,2]
[328568873,1717543831905,-250.0,0.00027053,2]
[328568874,1717543831914,-320.76,0.00027117,2]
[328568875,1717543831925,-325.68,0.00027281,2]
[328568876,1717543831935,-165.9,0.00027303,2]
[328568877,1717543831945,-813.03672237,0.0002739,2]
[328568878,1717543831956,-507.09,0.00027454,2]
[328568879,1717543831966,-219.84183679,0.00027545,2]
[328568880,1717543831978,-780.15816321,0.00027545,2]
[328568881,1717543831987,-291.31,0.00027843,2]
[328568882,1717543831996,-291.31,0.0002785,2]
[328568883,1717543832005,-291.31,0.00027857,2]
[328568884,1717543832014,-202.97,0.0002786,2]
[328568885,1717543832023,-291.31,0.00027865,2]
[328568886,1717543832032,-291.31,0.00027872,2]
[328568887,1717543832042,-291.31,0.00027879,2]
[328568888,1717543832052,-291.31,0.00027887,2]
[328568889,1717543832062,-291.31,0.00027894,2]
[328568890,1717543832071,-291.31,0.00027901,2]
[328568891,1717543832080,-291.31,0.00027909,2]
[328568892,1717543832090,-291.31,0.00027916,2]
[328568893,1717543832099,-291.31,0.00027923,2]
[328568894,1717543832109,-291.31,0.0002793,2]
[328568895,1717543832118,-291.31,0.00027938,2]
[328568896,1717543832128,-291.31,0.00027945,2]
[328568897,1717543832137,-150.0,0.00027952,2]
[328568898,1717543832157,-291.31,0.00027952,2]
[328568899,1717543832167,-291.31,0.0002796,2]
[328568900,1717543832177,-291.31,0.00027967,2]
[328568901,1717543832186,-291.31,0.00027974,2]
[328568902,1717543832196,-291.31,0.00027982,2]
[328568903,1717543832207,-167.0,0.00028031,2]
[328568904,1717543832216,-300.0,0.00028629,7]
[328568905,1717543832227,-4.29874986,0.0002863,2]
[328568906,1717543832240,-868.12125014,0.0002863,2]
[328568907,1717543832250,-416.3,0.0002863,2]
[328568908,1717543832260,-872.42,0.0002863,2]
[328568909,1717543832270,-872.42,0.0002863,2]
[328568910,1717543832279,-872.42,0.0002863,2]
[328568911,1717543832289,-194.19,0.0002863,2]
[328568912,1717543832298,-2954.02874986,0.000287,2]
[328568913,1717543832310,-2592.31585,0.000287,2]
[328568914,1717543834389,-642.3977412,0.000287,2]
[328568915,1717543834402,-397.56791311,0.000287,2]
[328568916,1717543834414,-1629.4257306,0.000287,2]
[328568917,1717543834426,-300.6296171,0.000287,2]
[328568918,1717543834438,-997.8724334,0.000287,2]
[328568920,1717543834556,-6577.77813554,0.000287,2]
[328568961,1717543837894,-6688.57958261,0.00016233,2]
[328568962,1717543837903,-1072.02718978,0.00028126,2]
[328568963,1717543837913,-3589.84893185,0.000287,2]
[328568964,1717543837924,-422.1,0.00028767,2]
[328568965,1717543837934,-207.71,0.00028767,2]
[328568966,1717543837943,-300.75,0.00028767,2]
[328568967,1717543837953,-318.25,0.00028767,2]
[328568968,1717543837966,-422.1,0.00028767,2]
[328568969,1717543837976,-419.47,0.00028767,2]
[328568970,1717543837985,-358.20152403,0.00028801,2]
[328568971,1717543837995,-265.78771828,0.0002899,2]
[328568972,1717543838004,-1061.31826704,0.00028997,2]
[328568973,1717543838013,-1350.0,0.00029,2]
[328568974,1717543838022,-12700.67906269,0.00029,3]
[328568976,1717543838031,-4165.37375278,0.00029,2]
[328568978,1717543838041,-5000.0,0.00029,7]
[328568980,1717543838050,-304.89,0.00029041,2]
[328568982,1717543838060,-151.0,0.00029087,2]
[328568984,1717543838069,-704.22,0.00029178,2]
[328568986,1717543838079,-202.97,0.00029253,2]
[328568987,1717543838089,-150.0,0.00029293,2]
[328568989,1717543838099,-150.0,0.00029293,2]
[328568990,1717543838109,-150.0,0.00029293,2]
[328568991,1717543838119,-150.0,0.00029293,2]
[328568992,1717543838128,-150.0,0.00029293,2]
[328568993,1717543838138,-150.0,0.00029293,2]
[328568994,1717543838148,-150.0,0.00029293,2]
[328568995,1717543838158,-150.0,0.00029293,2]
[328568996,1717543838167,-198.04569,0.00029293,2]
[328568997,1717543838176,-300.0,0.00029316,2]
[328568998,1717543838186,-253.53246556,0.00029318,2]
[328568999,1717543838195,-157.37038362,0.00029318,2]
[328569001,1717543838206,-150.0,0.00029319,2]
[328569003,1717543838215,-152.35312274,0.0002932,2]
[328569004,1717543838225,-300.0,0.00029322,2]
[328569005,1717543838234,-1000.0,0.00029352,30]
[328569006,1717543838244,-412.45466168,0.00029362,2]
[328569007,1717543838254,-300.0,0.00029369,2]
[328569008,1717543838264,-1500.0,0.00029377,2]
[328569009,1717543838274,-152.46932618,0.0002938,2]
[328569010,1717543838283,-150.0,0.00029385,2]
[328569011,1717543838293,-210.36986428,0.00029389,2]
[328569012,1717543838302,-225.8502287,0.00029391,2]
[328569013,1717543838312,-150.0,0.000294,2]
[328569014,1717543838321,-225.8502287,0.00029404,2]
[328569015,1717543838331,-305.78593012,0.00029417,2]
[328569016,1717543838341,-150.0,0.00029419,2]
[328569017,1717543838351,-676.251,0.0002948,2]
[328569018,1717543838360,-164.55475022,0.00029489,2]
[328569019,1717543838370,-200.48772906,0.00029489,15]
[328569020,1717543838380,-26607.02619377,0.00029489,15]
[328569021,1717543838389,-1000.0,0.00029489,2]
[328569022,1717543838399,-7500.0,0.00029489,2]
[328569023,1717543838408,-155.58720731,0.00029495,2]
[328569024,1717543838417,-488.0,0.000295,13]
[328569025,1717543838427,-345.0,0.000295,2]
[328569026,1717543838437,-690.0,0.000295,2]
[328569027,1717543838447,-160.0,0.000295,2]
[328569028,1717543838457,-150.0,0.000295,6]
[328569029,1717543838467,-300.0,0.00029512,2]
[328569030,1717543838477,-210.36986428,0.00029519,2]
[328569031,1717543838486,-225.8502287,0.00029526,2]
[328569032,1717543838495,-200.48772905,0.00029535,15]
[328569033,1717543838505,-26607.02619375,0.00029535,15]
[328569034,1717543838515,-150.0,0.0002956,2]
[328569035,1717543838525,-259.80255236,0.00029566,2]
[328569036,1717543838535,-227.4580941,0.00029576,2]
[328569037,1717543838544,-652.2975135,0.00029576,2]
[328569038,1717543838554,-150.0,0.00029577,2]
[328569039,1717543838563,-3994.89792932,0.00029578,2]
[328569040,1717543838573,-173.19217151,0.00029578,2]
[328569041,1717543838582,-157.64,0.00029579,2]
[328569042,1717543838591,-571.1,0.00029579,2]
[328569043,1717543838601,-571.1,0.00029579,2]
[328569044,1717543838611,-4703.9060158,0.0002958,2]
[328569045,1717543838620,-200.48772905,0.0002958,15]
[328569046,1717543838630,-26607.02619375,0.0002958,15]
[328569047,1717543838639,-150.01,0.00029588,2]
[328569048,1717543838649,-155.0,0.00029588,2]
[328569049,1717543838658,-150.0,0.00029588,2]
[328569050,1717543838668,-1046.18219115,0.00029589,2]
[328569051,1717543838678,-37559.36475608,0.00029589,2]
[328569052,1717543838687,-446.52248219,0.00029589,2]
[328569053,1717543838697,-500.0,0.00029589,4]
[328569054,1717543838706,-2000.0,0.00029589,2]
[328569055,1717543838716,-200.0,0.00029589,2]
[328569056,1717543838725,-500.0,0.00029589,4]
[328569057,1717543838735,-500.0,0.00029589,6]
[328569058,1717543838745,-500.0,0.00029589,6]
[328569059,1717543838755,-500.0,0.00029589,6]
[328569060,1717543838764,-500.0,0.00029589,6]
[328569061,1717543838774,-500.0,0.00029589,6]
[328569062,1717543838784,-182.01,0.00029589,6]
[328569063,1717543838794,-500.0,0.00029589,6]
[328569064,1717543838804,-500.0,0.00029589,6]
[328569065,1717543838813,-500.0,0.00029589,6]
[328569066,1717543838823,-500.0,0.00029589,6]
[328569067,1717543838832,-500.0,0.00029589,6]
[328569068,1717543838842,-500.0,0.00029589,6]
[328569069,1717543838852,-513.44194494,0.00029589,6]
[328569070,1717543838861,-500.0,0.00029589,6]
[328569071,1717543838871,-500.0,0.00029589,6]
[328569072,1717543838883,-500.0,0.00029589,6]
[328569073,1717543838892,-500.0,0.00029589,6]
[328569074,1717543838902,-500.0,0.00029589,6]
[328569075,1717543838911,-500.0,0.00029589,6]
[328569076,1717543838922,-318.26106048,0.00029589,6]
[328569077,1717543838932,-500.0,0.00029589,6]
[328569078,1717543838942,-500.0,0.00029589,6]
[328569079,1717543838953,-500.0,0.00029589,6]
[328569080,1717543838964,-500.0,0.00029589,6]
[328569081,1717543838974,-334.55508501,0.00029589,6]
[328569082,1717543838983,-500.0,0.00029589,6]
[328569083,1717543838992,-280.09438758,0.00029589,6]
[328569084,1717543839001,-500.0,0.00029589,2]
[328569085,1717543839010,-416.69823959,0.00029589,2]
[328569086,1717543839021,-500.0,0.00029589,2]
[328569087,1717543839030,-500.0,0.00029589,2]
[328569088,1717543839040,-500.0,0.00029589,2]
[328569089,1717543839050,-500.0,0.00029589,2]
[328569090,1717543839061,-500.0,0.00029589,2]
[328569091,1717543839071,-500.0,0.00029589,2]
[328569092,1717543839080,-500.0,0.00029589,2]
[328569093,1717543839090,-500.0,0.00029589,2]
[328569094,1717543839100,-500.0,0.00029589,2]
[328569095,1717543839110,-332.23965756,0.00029589,2]
[328569096,1717543839119,-500.0,0.00029589,2]
[328569097,1717543839129,-387.08014569,0.00029589,2]
[328569098,1717543839145,-112.91985431,0.00029589,2]
[328569099,1717543839155,-500.0,0.00029589,2]
[328569100,1717543839166,-500.0,0.00029589,2]
[328569101,1717543839176,-500.0,0.00029589,2]
[328569102,1717543839185,-500.0,0.00029589,2]
[328569103,1717543839195,-500.0,0.00029589,2]
[328569104,1717543839204,-500.0,0.00029589,2]
[328569105,1717543839214,-500.0,0.00029589,2]
[328569106,1717543839224,-500.0,0.00029589,2]
[328569107,1717543839233,-500.0,0.00029589,2]
[328569108,1717543839243,-500.0,0.00029589,2]
[328569109,1717543839252,-500.0,0.00029589,2]
[328569110,1717543839262,-500.0,0.00029589,2]
[328569111,1717543839272,-500.0,0.00029589,2]
[328569112,1717543839282,-500.0,0.00029589,6]
[328569113,1717543839292,-500.0,0.00029589,2]
[328569114,1717543839302,-500.0,0.00029589,2]
[328569115,1717543839313,-500.0,0.00029589,2]
[328569116,1717543839322,-202.5617016,0.00029589,2]
[328569117,1717543841347,-300.0,0.00029293,2]
[328569118,1717543841358,-507.08697801,0.00029489,2]
[328569119,1717543841371,-77.06429483,0.00029489,2]
[328569120,1717543841382,-297.4382984,0.00029589,2]
[328569121,1717543841392,-500.0,0.00029589,2]
[328569122,1717543841402,-500.0,0.00029589,2]
[328569123,1717543841413,-229.672399,0.00029589,2]
[328569124,1717543842527,-270.327601,0.00029589,2]
[328569126,1717543842537,-500.0,0.00029589,6]
[328569128,1717543842546,-500.0,0.00029589,2]
[328569129,1717543842556,-500.0,0.00029589,2]
[328569130,1717543842566,-500.0,0.00029589,2]
[328569131,1717543842575,-500.0,0.00029589,2]
[328569132,1717543842585,-500.0,0.00029589,2]
[328569133,1717543842595,-500.0,0.00029589,2]
[328569134,1717543842604,-313.52412227,0.00029589,2]
[328569135,1717543842614,-500.0,0.00029589,2]
[328569136,1717543842623,-500.0,0.00029589,2]
[328569137,1717543842632,-500.0,0.00029589,6]
[328569139,1717543842641,-500.0,0.00029589,6]
[328569141,1717543842651,-500.0,0.00029589,6]
[328569143,1717543842661,-500.0,0.00029589,6]
[328569145,1717543842670,-500.0,0.00029589,6]
[328569146,1717543842679,-500.0,0.00029589,6]
[328569148,1717543842688,-500.0,0.00029589,6]
[328569149,1717543842698,-500.0,0.00029589,6]
[328569150,1717543842707,-500.0,0.00029589,6]
[328569152,1717543842717,-500.0,0.00029589,6]
[328569153,1717543842726,-500.0,0.00029589,6]
[328569154,1717543842735,-500.0,0.00029589,6]
[328569155,1717543842744,-500.0,0.00029589,6]
[328569156,1717543842753,-500.0,0.00029589,6]
[328569157,1717543842762,-500.0,0.00029589,6]
[328569158,1717543842772,-500.0,0.00029589,6]
[328569159,1717543842782,-500.0,0.00029589,6]
[328569160,1717543842791,-500.0,0.00029589,6]
[328569161,1717543842801,-500.0,0.00029589,6]
[328569162,1717543842810,-500.0,0.00029589,6]
[328569163,1717543842820,-500.0,0.00029589,6]
[328569165,1717543842829,-428.96469285,0.00029589,6]
[328569166,1717543842838,-500.0,0.00029589,6]
[328569167,1717543842847,-500.0,0.00029589,6]
[328569168,1717543842857,-500.0,0.00029589,6]
[328569169,1717543842866,-500.0,0.00029589,6]
[328569170,1717543842876,-500.0,0.00029589,6]
[328569171,1717543842889,-500.0,0.00029589,6]
[328569172,1717543842899,-500.0,0.00029589,6]
[328569173,1717543842909,-500.0,0.00029589,6]
[328569174,1717543842919,-500.0,0.00029589,6]
[328569175,1717543842930,-500.0,0.00029589,6]
[328569176,1717543842939,-500.0,0.00029589,6]
[328569177,1717543842949,-500.0,0.00029589,6]
[328569178,1717543842959,-500.0,0.00029589,6]
[328569179,1717543842969,-500.0,0.00029589,6]
[328569180,1717543842978,-500.0,0.00029589,6]
[328569181,1717543842988,-500.0,0.00029589,6]
[328569182,1717543842997,-500.0,0.00029589,6]
[328569183,1717543843007,-746.18885887,0.00029589,2]
[328569184,1717543843016,-746.18885887,0.00029589,2]
[328569185,1717543843025,-746.18885887,0.00029589,2]
[328569186,1717543843035,-746.18885887,0.00029589,2]
[328569187,1717543843045,-746.18885887,0.00029589,2]
[328569188,1717543843055,-746.18885887,0.00029589,2]
[328569189,1717543843065,-746.18885887,0.00029589,2]
[328569190,1717543843076,-746.18885887,0.00029589,2]
[328569191,1717543843085,-746.18885887,0.00029589,2]
[328569192,1717543843095,-746.18885887,0.00029589,2]
[328569193,1717543843105,-746.18885887,0.00029589,2]
[328569194,1717543843115,-746.18885887,0.00029589,2]
[328569195,1717543843124,-746.18885887,0.00029589,2]
[328569196,1717543843133,-746.18885887,0.00029589,2]
[328569197,1717543843143,-746.18885887,0.00029589,2]
[328569198,1717543843152,-746.18885887,0.00029589,2]
[328569199,1717543843161,-746.18885887,0.00029589,2]
[328569200,1717543843171,-746.18885887,0.00029589,2]
[328569201,1717543843180,-746.18885887,0.00029589,2]
[328569202,1717543843190,-746.18885887,0.00029589,2]
[328569203,1717543843199,-746.18885887,0.00029589,2]
[328569204,1717543843209,-746.18885887,0.00029589,2]
[328569205,1717543843219,-746.18885887,0.00029589,2]
[328569206,1717543843228,-746.18885887,0.00029589,2]
[328569207,1717543843238,-746.18885887,0.00029589,2]
[328569208,1717543843248,-746.18885887,0.00029589,2]
[328569209,1717543843258,-746.18885887,0.00029589,2]
[328569210,1717543843268,-746.18885887,0.00029589,2]
[328569211,1717543843278,-746.18885887,0.00029589,2]
[328569212,1717543843288,-746.18885887,0.00029589,2]
[328569213,1717543843298,-746.18885887,0.00029589,2]
[328569214,1717543843308,-746.18885887,0.00029589,2]
[328569215,1717543843318,-746.18885887,0.00029589,2]
[328569216,1717543843328,-746.18885887,0.00029589,2]
[328569217,1717543843338,-746.18885887,0.00029589,2]
[328569218,1717543843347,-746.18885887,0.00029589,2]
[328569219,1717543843357,-746.18885887,0.00029589,2]
[328569220,1717543843367,-746.18885887,0.00029589,2]
[328569221,1717543843376,-746.18885887,0.00029589,2]
[328569222,1717543843386,-746.18885887,0.00029589,2]
[328569223,1717543843395,-746.18885887,0.00029589,2]
[328569224,1717543843405,-746.18885887,0.00029589,2]
[328569225,1717543843415,-746.18885887,0.00029589,2]
[328569226,1717543843424,-746.18885887,0.00029589,2]
[328569227,1717543843433,-746.18885887,0.00029589,2]
[328569228,1717543843444,-746.18885887,0.00029589,2]
[328569229,1717543843453,-746.18885887,0.00029589,2]
[328569230,1717543843464,-500.0,0.00029589,6]
[328569231,1717543843473,-500.0,0.00029589,6]
[328569232,1717543843483,-426.16,0.00029589,6]
[328569233,1717543843492,-500.0,0.00029589,6]
[328569234,1717543843501,-500.0,0.00029589,6]
[328569235,1717543843511,-500.0,0.00029589,6]
[328569236,1717543843521,-367.58,0.00029589,6]
[328569237,1717543843530,-500.0,0.00029589,6]
[328569238,1717543843539,-500.0,0.00029589,6]
[328569239,1717543843550,-500.0,0.00029589,6]
[328569240,1717543843559,-500.0,0.00029589,6]
[328569241,1717543843568,-500.0,0.00029589,6]
[328569242,1717543843577,-318.00295198,0.00029589,6]